[Event "*** Titled Tuesday Blitz"]
[Site "Chess.com"]
[Date "2021.02.02"]
[Round "1"]
[White "djano"]
[Black "MITerryble"]
[Result "0-1"]
[WhiteElo "2468"]
[BlackElo "2925"]
[TimeControl "180+1"]
[EndTime "10:08:32 PST"]
[Termination "MITerryble won by resignation"]

1. c4 {[%clk 0:03:00.8]} 1... e5 {[%clk 0:02:59.8]} 2. Nc3 {[%clk 0:02:59.5]}
2... Nc6 {[%clk 0:02:58.9]} 3. Nf3 {[%clk 0:02:57.1]} 3... f5 {[%clk 0:02:57.4]}
4. d4 {[%clk 0:02:52.5]} 4... e4 {[%clk 0:02:57.2]} 5. d5 {[%clk 0:02:52.8]}
5... exf3 {[%clk 0:02:53.9]} 6. dxc6 {[%clk 0:02:52.4]} 6... fxg2 {[%clk
0:02:54.2]} 7. cxd7+ {[%clk 0:02:51.3]} 7... Qxd7 {[%clk 0:02:54.1]} 8. Bxg2
{[%clk 0:02:46.9]} 8... Qxd1+ {[%clk 0:02:53.4]} 9. Kxd1 {[%clk 0:02:45.6]} 9...
c6 {[%clk 0:02:53.4]} 10. Kc2 {[%clk 0:02:39.4]} 10... Be6 {[%clk 0:02:52.8]}
11. b3 {[%clk 0:02:38.2]} 11... Nf6 {[%clk 0:02:50.7]} 12. Bf3 {[%clk
0:02:19.3]} 12... Bd6 {[%clk 0:02:46.2]} 13. Bg5 {[%clk 0:02:13.9]} 13... Be5
{[%clk 0:02:46]} 14. Rad1 {[%clk 0:02:11.3]} 14... h6 {[%clk 0:02:35.5]} 15. Be3
{[%clk 0:02:09.7]} 15... Kf7 {[%clk 0:02:32.7]} 16. Bd4 {[%clk 0:02:09.6]} 16...
Bc7 {[%clk 0:02:29.7]} 17. h3 {[%clk 0:01:59.1]} 17... Rhd8 {[%clk 0:02:25.9]}
18. Na4 {[%clk 0:01:55.2]} 18... Nd7 {[%clk 0:02:22.8]} 19. Rhg1 {[%clk
0:01:47.7]} 19... g6 {[%clk 0:02:22.9]} 20. Nc5 {[%clk 0:01:31]} 20... Nxc5
{[%clk 0:02:22.2]} 21. Bxc5 {[%clk 0:01:31.9]} 21... a5 {[%clk 0:02:19.4]} 22.
a4 {[%clk 0:01:28.9]} 22... Rxd1 {[%clk 0:02:07.7]} 23. Rxd1 {[%clk 0:01:27.9]}
23... Re8 {[%clk 0:02:08.6]} 24. h4 {[%clk 0:01:23.7]} 24... Bd8 {[%clk
0:02:05.8]} 25. Be3 {[%clk 0:01:11]} 25... Kg7 {[%clk 0:01:56.6]} 26. h5 {[%clk
0:01:06.1]} 26... g5 {[%clk 0:01:56.4]} 27. Bd4+ {[%clk 0:01:00.2]} 27... Kf7
{[%clk 0:01:56.2]} 28. Bc3 {[%clk 0:00:56.3]} 28... Bc7 {[%clk 0:01:49.9]} 29.
e3 {[%clk 0:00:53.6]} 29... g4 {[%clk 0:01:43.1]} 30. Be2 {[%clk 0:00:50]} 30...
Rg8 {[%clk 0:01:44]} 31. Rh1 {[%clk 0:00:33.4]} 31... Ke7 {[%clk 0:01:27]} 32.
b4 {[%clk 0:00:29.9]} 32... axb4 {[%clk 0:01:22.1]} 33. Bxb4+ {[%clk 0:00:30.8]}
33... Bd6 {[%clk 0:01:23]} 34. c5 {[%clk 0:00:29.4]} 34... Be5 {[%clk
0:01:21.4]} 35. a5 {[%clk 0:00:29.6]} 35... Bd5 {[%clk 0:01:16.6]} 36. Rg1
{[%clk 0:00:27.1]} 36... Rg5 {[%clk 0:01:14.3]} 37. Bd2 {[%clk 0:00:19.2]} 37...
Kd7 {[%clk 0:01:08.7]} 38. e4 {[%clk 0:00:18.8]} 38... Bxe4+ {[%clk 0:01:08.4]}
39. Bd3 {[%clk 0:00:18.9]} 39... Bxd3+ {[%clk 0:01:07.6]} 40. Kxd3 {[%clk
0:00:19.8]} 40... Rxh5 {[%clk 0:01:08.5]} 41. Rb1 {[%clk 0:00:19.8]} 41... Rh3+
{[%clk 0:01:08.2]} 42. Kc4 {[%clk 0:00:19.4]} 42... Kc8 {[%clk 0:01:07.3]} 43.
Re1 {[%clk 0:00:19.2]} 43... Bc7 {[%clk 0:00:57.4]} 44. Re8+ {[%clk 0:00:19.2]}
44... Kd7 {[%clk 0:00:57.5]} 45. Rf8 {[%clk 0:00:18.6]} 45... Rf3 {[%clk
0:00:34.9]} 46. Rf7+ {[%clk 0:00:18.1]} 46... Kd8 {[%clk 0:00:35.2]} 47. Bxh6
{[%clk 0:00:17.6]} 47... Bxa5 {[%clk 0:00:35.3]} 48. Rxb7 {[%clk 0:00:12.8]}
48... Rxf2 {[%clk 0:00:33.6]} 49. Kd4 {[%clk 0:00:10.2]} 49... g3 {[%clk
0:00:30.3]} 50. Ke5 {[%clk 0:00:08.6]} 50... g2 {[%clk 0:00:29.4]} 51. Kd6
{[%clk 0:00:08.4]} 51... Kc8 {[%clk 0:00:28.1]} 52. Rg7 {[%clk 0:00:07.3]} 52...
Bd2 {[%clk 0:00:13.5]} 53. Kxc6 {[%clk 0:00:06.4]} 53... Kd8 {[%clk 0:00:11.5]}
54. Bxd2 {[%clk 0:00:02.8]} 54... Rxd2 {[%clk 0:00:12.4]} 55. Rg5 {[%clk
0:00:01.5]} 55... f4 {[%clk 0:00:12]} 56. Kb7 {[%clk 0:00:01.4]} 56... Rb2+
{[%clk 0:00:11.5]} 57. Kc6 {[%clk 0:00:01.6]} 57... f3 {[%clk 0:00:12.4]} 58.
Rg8+ {[%clk 0:00:01.2]} 58... Ke7 {[%clk 0:00:12]} 59. Rg7+ {[%clk 0:00:02.1]}
59... Kf6 {[%clk 0:00:11.8]} 60. Rg3 {[%clk 0:00:03]} 60... Ke5 {[%clk
0:00:11.2]} 61. Rg5+ {[%clk 0:00:02.5]} 61... Kf4 {[%clk 0:00:11.4]} 62. Rg8
{[%clk 0:00:02.6]} 62... Ke3 {[%clk 0:00:11]} 63. Re8+ {[%clk 0:00:02.7]} 63...
Kf2 {[%clk 0:00:10.8]} 0-1

[Event "*** Titled Tuesday Blitz"]
[Site "Chess.com"]
[Date "2021.02.02"]
[Round "1"]
[White "TST2014"]
[Black "HrvojeZagreb"]
[Result "1-0"]
[WhiteElo "2545"]
[BlackElo "2229"]
[TimeControl "180+1"]
[EndTime "10:08:38 PST"]
[Termination "TST2014 won by resignation"]

1. d4 {[%clk 0:03:00.9]} 1... e6 {[%clk 0:02:59.5]} 2. c4 {[%clk 0:02:58.5]}
2... f5 {[%clk 0:02:59.6]} 3. Nf3 {[%clk 0:02:58.1]} 3... Nf6 {[%clk 0:02:59.9]}
4. g3 {[%clk 0:02:58]} 4... Be7 {[%clk 0:02:59.8]} 5. Bg2 {[%clk 0:02:58.4]}
5... O-O {[%clk 0:02:59.9]} 6. O-O {[%clk 0:02:58.7]} 6... d6 {[%clk 0:02:59.1]}
7. b4 {[%clk 0:02:58.8]} 7... Ne4 {[%clk 0:02:57.6]} 8. Bb2 {[%clk 0:02:53.5]}
8... Bf6 {[%clk 0:02:56.9]} 9. Nfd2 {[%clk 0:02:47.3]} 9... Nxd2 {[%clk
0:02:55.1]} 10. Nxd2 {[%clk 0:02:46.8]} 10... e5 {[%clk 0:02:49.2]} 11. dxe5
{[%clk 0:02:36.8]} 11... dxe5 {[%clk 0:02:50.1]} 12. e4 {[%clk 0:02:29.6]} 12...
f4 {[%clk 0:02:46.2]} 13. gxf4 {[%clk 0:02:22.4]} 13... exf4 {[%clk 0:02:46.4]}
14. e5 {[%clk 0:02:22.5]} 14... Be7 {[%clk 0:02:43]} 15. b5 {[%clk 0:02:07.6]}
15... Qe8 {[%clk 0:02:32.9]} 16. Bd5+ {[%clk 0:01:39.3]} 16... Kh8 {[%clk
0:02:31.8]} 17. Kh1 {[%clk 0:01:35.7]} 17... c6 {[%clk 0:02:28.4]} 18. Be4
{[%clk 0:01:27]} 18... Bf5 {[%clk 0:02:19]} 19. a4 {[%clk 0:01:21.1]} 19... Nd7
{[%clk 0:02:05.6]} 20. Rg1 {[%clk 0:01:19.8]} 20... Nc5 {[%clk 0:00:58.9]} 21.
Bxf5 {[%clk 0:01:15.6]} 21... Rxf5 {[%clk 0:00:59.8]} 22. Qf3 {[%clk 0:01:04.8]}
22... Rd8 {[%clk 0:00:51.6]} 23. Ne4 {[%clk 0:00:56.7]} 23... Qh5 {[%clk
0:00:36.7]} 24. Qxh5 {[%clk 0:00:50.1]} 24... Rxh5 {[%clk 0:00:37.6]} 25. Nxc5
{[%clk 0:00:35]} 25... Bxc5 {[%clk 0:00:38.5]} 26. Rad1 {[%clk 0:00:35.1]} 26...
Re8 {[%clk 0:00:24.6]} 27. e6 {[%clk 0:00:34.9]} 27... Bf8 {[%clk 0:00:18]} 28.
Rd7 {[%clk 0:00:18.8]} 28... Rxe6 {[%clk 0:00:16.9]} 29. Bxg7+ {[%clk
0:00:18.7]} 29... Bxg7 {[%clk 0:00:16.6]} 30. Rdxg7 {[%clk 0:00:19.3]} 30... Re8
{[%clk 0:00:15.5]} 31. Rxb7 {[%clk 0:00:19.2]} 31... Rc5 {[%clk 0:00:13.1]} 32.
Rgg7 {[%clk 0:00:14.8]} 32... f3 {[%clk 0:00:11.2]} 33. Rxh7+ {[%clk 0:00:14.7]}
33... Kg8 {[%clk 0:00:11.6]} 34. Rhe7 {[%clk 0:00:11]} 34... Rxe7 {[%clk
0:00:09.8]} 35. Rxe7 {[%clk 0:00:11.5]} 35... Rxc4 {[%clk 0:00:10.2]} 36. h3
{[%clk 0:00:10.2]} 36... cxb5 {[%clk 0:00:08.9]} 37. axb5 {[%clk 0:00:10.2]}
37... Rb4 {[%clk 0:00:08.8]} 38. Rxa7 {[%clk 0:00:10.1]} 38... Rxb5 {[%clk
0:00:09.1]} 39. Ra3 {[%clk 0:00:10.7]} 39... Rf5 {[%clk 0:00:09]} 40. Kh2 {[%clk
0:00:10.7]} 40... Kg7 {[%clk 0:00:05.5]} 41. Kg3 {[%clk 0:00:10.9]} 41... Kg6
{[%clk 0:00:04.1]} 42. Rxf3 {[%clk 0:00:11.4]} 42... Rb5 {[%clk 0:00:04.1]} 43.
Kg2 {[%clk 0:00:10.8]} 43... Rb1 {[%clk 0:00:04.5]} 44. Rc3 {[%clk 0:00:10.7]}
44... Kh5 {[%clk 0:00:05.4]} 45. Rc5+ {[%clk 0:00:10.6]} 45... Kg6 {[%clk
0:00:06.3]} 46. h4 {[%clk 0:00:10.3]} 46... Kh6 {[%clk 0:00:07.2]} 47. Kg3
{[%clk 0:00:10.4]} 47... Kg7 {[%clk 0:00:08.1]} 48. Kg4 {[%clk 0:00:10.6]} 48...
Kh7 {[%clk 0:00:09]} 49. Kh5 {[%clk 0:00:10.5]} 49... Kg7 {[%clk 0:00:09.9]} 50.
Rc7+ {[%clk 0:00:10.9]} 50... Kf8 {[%clk 0:00:10]} 51. f4 {[%clk 0:00:10.1]}
51... Rg1 {[%clk 0:00:09.4]} 52. f5 {[%clk 0:00:10.1]} 52... Kg8 {[%clk
0:00:09.7]} 53. Kh6 {[%clk 0:00:10.3]} 53... Kf8 {[%clk 0:00:09.8]} 54. h5
{[%clk 0:00:10.8]} 54... Rg2 {[%clk 0:00:09.4]} 55. f6 {[%clk 0:00:10.9]} 55...
Rg1 {[%clk 0:00:09.4]} 56. Rg7 {[%clk 0:00:11.4]} 56... Rf1 {[%clk 0:00:08.6]}
57. Rg6 {[%clk 0:00:11.7]} 57... Kf7 {[%clk 0:00:08.2]} 58. Kg5 {[%clk
0:00:11.2]} 58... Rg1+ {[%clk 0:00:07.9]} 59. Kh6 {[%clk 0:00:11.8]} 59... Rf1
{[%clk 0:00:08]} 60. Kh7 {[%clk 0:00:12.2]} 60... Rxf6 {[%clk 0:00:07.4]} 61.
Rg7+ {[%clk 0:00:11.1]} 61... Kf8 {[%clk 0:00:07.3]} 62. h6 {[%clk 0:00:11.7]}
62... Rf7 {[%clk 0:00:05.1]} 63. Kh8 {[%clk 0:00:10.6]} 63... Rf6 {[%clk
0:00:04.7]} 64. h7 {[%clk 0:00:10.2]} 64... Rh6 {[%clk 0:00:03.9]} 65. Rg8+
{[%clk 0:00:10.4]} 65... Kf7 {[%clk 0:00:04.4]} 66. Rg1 {[%clk 0:00:10.7]} 66...
Rg6 {[%clk 0:00:03.7]} 67. Rxg6 {[%clk 0:00:10.3]} 67... Kxg6 {[%clk 0:00:03.9]}
68. Kg8 {[%clk 0:00:10.8]} 1-0

[Event "*** Titled Tuesday Blitz"]
[Site "Chess.com"]
[Date "2021.02.02"]
[Round "1"]
[White "Katheksis"]
[Black "Sibelephant"]
[Result "0-1"]
[WhiteElo "2474"]
[BlackElo "3050"]
[TimeControl "180+1"]
[EndTime "10:08:39 PST"]
[Termination "Sibelephant won by resignation"]

1. e4 {[%clk 0:02:59.8]} 1... c6 {[%clk 0:02:58.9]} 2. Nc3 {[%clk 0:02:59.6]}
2... d5 {[%clk 0:02:59]} 3. Nf3 {[%clk 0:03:00.5]} 3... Bg4 {[%clk 0:02:57.7]}
4. h3 {[%clk 0:03:00.6]} 4... Bxf3 {[%clk 0:02:57.8]} 5. Qxf3 {[%clk 0:03:01.5]}
5... Nf6 {[%clk 0:02:58.2]} 6. d3 {[%clk 0:02:59.6]} 6... e6 {[%clk 0:02:58]} 7.
Bd2 {[%clk 0:02:59.3]} 7... Qb6 {[%clk 0:02:53.1]} 8. O-O-O {[%clk 0:02:52.5]}
8... d4 {[%clk 0:02:53.3]} 9. Ne2 {[%clk 0:02:50.8]} 9... c5 {[%clk 0:02:53.5]}
10. g4 {[%clk 0:02:46.3]} 10... Nc6 {[%clk 0:02:53.5]} 11. g5 {[%clk 0:02:46.3]}
11... Nd7 {[%clk 0:02:53.6]} 12. Qg3 {[%clk 0:02:30.3]} 12... c4 {[%clk
0:02:24.2]} 13. dxc4 {[%clk 0:02:29.4]} 13... Nc5 {[%clk 0:02:24.1]} 14. Bg2
{[%clk 0:02:13.8]} 14... Qa6 {[%clk 0:02:20.8]} 15. Kb1 {[%clk 0:02:12.9]} 15...
Qxc4 {[%clk 0:02:20.6]} 16. Nc1 {[%clk 0:02:08.1]} 16... Be7 {[%clk 0:02:17.8]}
17. h4 {[%clk 0:02:06.2]} 17... O-O-O {[%clk 0:02:08.9]} 18. Nd3 {[%clk
0:02:00.5]} 18... Na4 {[%clk 0:02:04.9]} 19. e5 {[%clk 0:01:45]} 19... Kb8
{[%clk 0:01:51.1]} 20. Rc1 {[%clk 0:01:38.3]} 20... Rc8 {[%clk 0:01:50.3]} 21.
Qf3 {[%clk 0:01:37]} 21... Rhf8 {[%clk 0:01:46.5]} 22. Qe4 {[%clk 0:01:30.8]}
22... g6 {[%clk 0:01:33.3]} 23. Rh3 {[%clk 0:01:21.3]} 23... Qb5 {[%clk
0:01:28.9]} 24. Ka1 {[%clk 0:01:14.4]} 24... Rc7 {[%clk 0:01:29.1]} 25. Rf3
{[%clk 0:00:50.3]} 25... a5 {[%clk 0:01:19.6]} 26. Bf1 {[%clk 0:00:34.8]} 26...
Qb6 {[%clk 0:01:08.1]} 27. Be2 {[%clk 0:00:32.5]} 27... Na7 {[%clk 0:00:54.7]}
28. h5 {[%clk 0:00:24.8]} 28... Nb5 {[%clk 0:00:54.6]} 29. hxg6 {[%clk
0:00:24.3]} 29... hxg6 {[%clk 0:00:54.7]} 30. Bd1 {[%clk 0:00:19.8]} 30... Ka7
{[%clk 0:00:34.2]} 31. Rb1 {[%clk 0:00:20.1]} 31... Rc6 {[%clk 0:00:25.6]} 32.
Qe1 {[%clk 0:00:20.2]} 32... Bd8 {[%clk 0:00:20.9]} 33. Rf4 {[%clk 0:00:19.5]}
33... Nc5 {[%clk 0:00:20.7]} 34. Nxc5 {[%clk 0:00:19.3]} 34... Rxc5 {[%clk
0:00:20.8]} 35. Rf3 {[%clk 0:00:19.4]} 35... Qc7 {[%clk 0:00:17.3]} 36. Rb3
{[%clk 0:00:19.6]} 36... Rxe5 {[%clk 0:00:16.9]} 37. Qf1 {[%clk 0:00:18.8]}
37... Qc6 {[%clk 0:00:16.9]} 38. Be2 {[%clk 0:00:18.2]} 38... Nc7 {[%clk
0:00:14.7]} 39. Bd3 {[%clk 0:00:18.7]} 39... a4 {[%clk 0:00:12.9]} 40. Ra3
{[%clk 0:00:19.1]} 40... Be7 {[%clk 0:00:13]} 41. f4 {[%clk 0:00:13.7]} 41...
Rd5 {[%clk 0:00:10.7]} 42. Be4 {[%clk 0:00:13.9]} 42... Bxa3 {[%clk 0:00:09.9]}
43. bxa3 {[%clk 0:00:14.8]} 43... Rc8 {[%clk 0:00:08.6]} 44. Qd3 {[%clk
0:00:15.1]} 44... Qa6 {[%clk 0:00:08.2]} 45. Qxa6+ {[%clk 0:00:14.7]} 45... Kxa6
{[%clk 0:00:09.1]} 46. Rb4 {[%clk 0:00:15]} 46... b5 {[%clk 0:00:08.6]} 47. Bxd5
{[%clk 0:00:14.6]} 47... Nxd5 {[%clk 0:00:09.5]} 48. Rxd4 {[%clk 0:00:15.4]}
48... Rxc2 {[%clk 0:00:09.9]} 49. Bb4 {[%clk 0:00:15.9]} 49... Rc4 {[%clk
0:00:09.3]} 50. Rd1 {[%clk 0:00:15.4]} 50... Rxf4 {[%clk 0:00:08.2]} 51. Rc1
{[%clk 0:00:15.7]} 51... Nxb4 {[%clk 0:00:07]} 52. axb4 {[%clk 0:00:16.6]} 52...
Rxb4 {[%clk 0:00:07.5]} 53. Rc7 {[%clk 0:00:17.5]} 53... Rf4 {[%clk 0:00:07.2]}
54. Kb2 {[%clk 0:00:16.4]} 54... b4 {[%clk 0:00:07.2]} 55. Re7 {[%clk
0:00:16.8]} 55... Rf2+ {[%clk 0:00:07.6]} 56. Kb1 {[%clk 0:00:17.2]} 56... a3
{[%clk 0:00:08]} 57. Re8 {[%clk 0:00:17.6]} 57... Kb5 {[%clk 0:00:08.3]} 58. Rc8
{[%clk 0:00:17.6]} 58... Rb2+ {[%clk 0:00:07.8]} 59. Ka1 {[%clk 0:00:17.7]}
59... Rg2 {[%clk 0:00:08.4]} 60. Kb1 {[%clk 0:00:18.4]} 60... Rxg5 {[%clk
0:00:08.7]} 61. Rc7 {[%clk 0:00:19.3]} 61... f5 {[%clk 0:00:08]} 62. Kc2 {[%clk
0:00:19.8]} 62... Rg2+ {[%clk 0:00:08]} 63. Kd3 {[%clk 0:00:19]} 63... Rxa2
{[%clk 0:00:07.5]} 64. Rb7+ {[%clk 0:00:19.5]} 64... Ka4 {[%clk 0:00:07.9]} 65.
Kc4 {[%clk 0:00:20.1]} 65... Rc2+ {[%clk 0:00:08.5]} 66. Kd3 {[%clk 0:00:19.8]}
66... Kb3 {[%clk 0:00:08.7]} 0-1

[Event "*** Titled Tuesday Blitz"]
[Site "Chess.com"]
[Date "2021.02.02"]
[Round "1"]
[White "Homino"]
[Black "Grandmaster2B"]
[Result "0-1"]
[WhiteElo "2304"]
[BlackElo "2604"]
[TimeControl "180+1"]
[EndTime "10:08:39 PST"]
[Termination "Grandmaster2B won on time"]

1. e4 {[%clk 0:03:00.9]} 1... c5 {[%clk 0:02:57.7]} 2. Nf3 {[%clk 0:03:00.4]}
2... d6 {[%clk 0:02:55.4]} 3. d4 {[%clk 0:03:00.4]} 3... cxd4 {[%clk 0:02:56.3]}
4. Nxd4 {[%clk 0:03:00.9]} 4... Nf6 {[%clk 0:02:55.2]} 5. Nc3 {[%clk 0:03:01.4]}
5... a6 {[%clk 0:02:53.2]} 6. Be2 {[%clk 0:03:01.8]} 6... e5 {[%clk 0:02:53.1]}
7. Nb3 {[%clk 0:03:02.3]} 7... Be7 {[%clk 0:02:53.7]} 8. O-O {[%clk 0:03:02.3]}
8... O-O {[%clk 0:02:54.1]} 9. Kh1 {[%clk 0:03:02.4]} 9... Re8 {[%clk
0:02:53.2]} 10. f4 {[%clk 0:02:55.4]} 10... b5 {[%clk 0:02:48.8]} 11. Bf3 {[%clk
0:02:52.4]} 11... Bb7 {[%clk 0:02:47.7]} 12. a4 {[%clk 0:02:50]} 12... b4 {[%clk
0:02:43.8]} 13. Nd5 {[%clk 0:02:49]} 13... Nc6 {[%clk 0:02:32.2]} 14. Be3 {[%clk
0:02:41.2]} 14... Rb8 {[%clk 0:02:12.9]} 15. a5 {[%clk 0:02:36.8]} 15... exf4
{[%clk 0:02:11.6]} 16. Bxf4 {[%clk 0:02:28.7]} 16... Ne5 {[%clk 0:02:10.8]} 17.
Nd4 {[%clk 0:02:18.7]} 17... Nxd5 {[%clk 0:01:44]} 18. exd5 {[%clk 0:02:17.3]}
18... Bf6 {[%clk 0:01:43]} 19. Nf5 {[%clk 0:01:59]} 19... g6 {[%clk 0:01:35.6]}
20. Nh6+ {[%clk 0:01:57.1]} 20... Kg7 {[%clk 0:01:35.9]} 21. Ng4 {[%clk
0:01:53.9]} 21... Nxg4 {[%clk 0:01:30.8]} 22. Bxg4 {[%clk 0:01:53.9]} 22... Bxb2
{[%clk 0:01:30.8]} 23. Rb1 {[%clk 0:01:46.6]} 23... Be5 {[%clk 0:01:28]} 24. Qf3
{[%clk 0:01:41.3]} 24... f5 {[%clk 0:01:12.5]} 25. Bh3 {[%clk 0:01:12.4]} 25...
Ba8 {[%clk 0:00:50.3]} 26. Rbd1 {[%clk 0:01:03]} 26... Rb5 {[%clk 0:00:47.8]}
27. Qg3 {[%clk 0:00:54.5]} 27... Kh8 {[%clk 0:00:44.1]} 28. Bxe5+ {[%clk
0:00:48.2]} 28... Rxe5 {[%clk 0:00:45]} 29. Qf2 {[%clk 0:00:42.8]} 29... Rxa5
{[%clk 0:00:40.9]} 30. Rfe1 {[%clk 0:00:42]} 30... Raxd5 {[%clk 0:00:23.3]} 31.
Rxd5 {[%clk 0:00:40.4]} 31... Bxd5 {[%clk 0:00:19.4]} 32. Qd4 {[%clk 0:00:40.3]}
32... Qf6 {[%clk 0:00:19.7]} 33. Rg1 {[%clk 0:00:35.9]} 33... a5 {[%clk
0:00:14]} 34. Qa7 {[%clk 0:00:34.6]} 34... Bg8 {[%clk 0:00:10.9]} 35. Qd7 {[%clk
0:00:29.8]} 35... Qe7 {[%clk 0:00:10.5]} 36. Qc6 {[%clk 0:00:26.4]} 36... Rc5
{[%clk 0:00:10.7]} 37. Qb6 {[%clk 0:00:21.5]} 37... Qc7 {[%clk 0:00:11]} 38. Qa6
{[%clk 0:00:20.1]} 38... Rxc2 {[%clk 0:00:06.1]} 39. Qf1 {[%clk 0:00:19.6]}
39... d5 {[%clk 0:00:05]} 40. Qa1+ {[%clk 0:00:19.2]} 40... Rc3 {[%clk
0:00:05.9]} 41. Rc1 {[%clk 0:00:18.4]} 41... d4 {[%clk 0:00:05.7]} 42. Rd1
{[%clk 0:00:18.2]} 42... Qc5 {[%clk 0:00:04.5]} 43. g3 {[%clk 0:00:17.4]} 43...
Kg7 {[%clk 0:00:04.8]} 44. Bg2 {[%clk 0:00:17.3]} 44... Bd5 {[%clk 0:00:05.7]}
45. Qb2 {[%clk 0:00:15.9]} 45... Bxg2+ {[%clk 0:00:05]} 46. Qxg2 {[%clk
0:00:15.3]} 46... b3 {[%clk 0:00:05.4]} 47. Qb7+ {[%clk 0:00:15.1]} 47... Kh6
{[%clk 0:00:06]} 48. Qb8 {[%clk 0:00:12.7]} 48... Qc6+ {[%clk 0:00:06.1]} 49.
Kg1 {[%clk 0:00:12.1]} 49... Qc8 {[%clk 0:00:06]} 50. Qf4+ {[%clk 0:00:11.7]}
50... Kg7 {[%clk 0:00:06.5]} 51. Qxd4+ {[%clk 0:00:11.8]} 51... Kf7 {[%clk
0:00:06]} 52. Qd5+ {[%clk 0:00:11.7]} 52... Kg7 {[%clk 0:00:06.2]} 53. Qd4+
{[%clk 0:00:10.6]} 53... Kf8 {[%clk 0:00:05.8]} 54. Qd6+ {[%clk 0:00:09.8]}
54... Kf7 {[%clk 0:00:05.1]} 55. Qd5+ {[%clk 0:00:06.7]} 55... Qe6 {[%clk
0:00:05.5]} 56. Qb7+ {[%clk 0:00:06.8]} 56... Kf6 {[%clk 0:00:04.7]} 57. Qa7
{[%clk 0:00:03.8]} 57... Qe3+ {[%clk 0:00:04.9]} 58. Qxe3 {[%clk 0:00:03.2]}
58... Rxe3 {[%clk 0:00:05.8]} 59. Rd6+ {[%clk 0:00:03.1]} 59... Ke5 {[%clk
0:00:06]} 60. Rb6 {[%clk 0:00:03.4]} 60... a4 {[%clk 0:00:06]} 61. Rb5+ {[%clk
0:00:03.2]} 61... Kd4 {[%clk 0:00:06.7]} 62. Rb4+ {[%clk 0:00:03.5]} 62... Kc3
{[%clk 0:00:06.2]} 63. Rxa4 {[%clk 0:00:02.6]} 63... b2 {[%clk 0:00:06.6]} 64.
Ra3+ {[%clk 0:00:03.2]} 64... Kd2 {[%clk 0:00:06.5]} 65. Ra2 {[%clk 0:00:02.6]}
65... Kc1 {[%clk 0:00:06.5]} 66. Rxb2 {[%clk 0:00:02.2]} 66... Kxb2 {[%clk
0:00:07.4]} 67. Kf2 {[%clk 0:00:02.9]} 67... Kc3 {[%clk 0:00:08.3]} 68. Kxe3
{[%clk 0:00:02.9]} 68... g5 {[%clk 0:00:07.8]} 69. h4 {[%clk 0:00:02.1]} 69...
h6 {[%clk 0:00:07]} 0-1